fUST/lending_fUST_20250804
["ID","MTS","AMOUNT","RATE_DAILY","PERIOD"]
[377156938,1754262640553,-460.0,0.00049315,120]
[377156951,1754262640665,-460.0,0.00049315,120]
[377156953,1754262640677,-460.0,0.00049315,120]
[377156955,1754262640687,-515.39,0.00049315,120]
[377156957,1754262640696,-511.64,0.00049315,120]
[377156959,1754262640705,-460.0,0.00049315,120]
[377156961,1754262640714,-577.19046698,0.00049315,120]
[377156963,1754262640724,-460.0,0.00049315,120]
[377156965,1754262640734,-460.0,0.00049315,120]
[377156967,1754262640743,-2536.87,0.00049315,120]
[377156969,1754262640754,-460.0,0.00049315,120]
[377156971,1754262640763,-572.77,0.00049315,120]
[377156973,1754262640773,-460.0,0.00049315,120]
[377156975,1754262640782,-703.39,0.00049315,120]
[377156977,1754262640791,-460.0,0.00049315,120]
[377156979,1754262640801,-460.0,0.00049315,120]
[377156981,1754262640811,-460.0,0.00049315,120]
[377156983,1754262640821,-460.0,0.00049315,120]
[377156985,1754262640830,-244.16151973,0.00049315,120]
[377156987,1754262640839,-500.0,0.00049315,120]
[377156989,1754262640848,-500.0,0.00049315,120]
[377156991,1754262640857,-501.24140967,0.00049315,120]
[377156993,1754262640867,-629.7,0.00049315,120]
[377156995,1754262640876,-460.0,0.00049315,120]
[377156997,1754262640886,-460.0,0.00049315,120]
[377156999,1754262640895,-460.0,0.00049315,120]
[377157001,1754262640905,-460.0,0.00049315,120]
[377157003,1754262640914,-460.0,0.00049315,120]
[377157005,1754262640923,-557.62,0.00049315,120]
[377157007,1754262640932,-460.0,0.00049315,120]
[377157009,1754262640941,-460.0,0.00049315,120]
[377157011,1754262640950,-460.0,0.00049315,120]
[377157013,1754262640960,-460.0,0.00049315,120]
[377157015,1754262640969,-460.0,0.00049315,120]
[377157017,1754262640978,-460.0,0.00049315,120]
[377157019,1754262640987,-195.04429295,0.00049315,120]
[377157021,1754262640997,-460.0,0.00049315,120]
[377157023,1754262641006,-460.3866678,0.00049315,120]
[377157025,1754262641016,-1338.79,0.00049315,120]
[377157027,1754262641025,-460.0,0.00049315,120]
[377157029,1754262641034,-460.0,0.00049315,120]
[377157031,1754262641044,-606.26,0.00049315,120]
[377157033,1754262641053,-460.0,0.00049315,120]
[377157035,1754262641062,-460.0,0.00049315,120]
[377157037,1754262641071,-460.0,0.00049315,120]
[377157039,1754262641081,-460.0,0.00049315,120]
[377157041,1754262641090,-460.0,0.00049315,120]
[377157042,1754262641100,-460.0,0.00049315,120]
[377157043,1754262641113,-1457.17,0.00049315,120]
[377157044,1754262641123,-460.0,0.00049315,120]
[377157045,1754262641132,-460.0,0.00049315,120]
[377157046,1754262641142,-460.0,0.00049315,120]
[377157047,1754262641151,-460.0,0.00049315,120]
[377157048,1754262641161,-1111.14,0.00049315,120]
[377157049,1754262641171,-460.0,0.00049315,120]
[377157050,1754262641180,-460.0,0.00049315,120]
[377157051,1754262641189,-460.0,0.00049315,120]
[377157052,1754262641199,-460.0,0.00049315,120]
[377157053,1754262641209,-460.0,0.00049315,120]
[377157054,1754262641218,-460.0,0.00049315,120]
[377157055,1754262641228,-624.63,0.00049315,120]
[377157056,1754262641237,-460.0,0.00049315,120]
[377157058,1754262641248,-464.06210698,0.00049315,120]
[377157060,1754262641258,-460.0,0.00049315,120]
[377157062,1754262641268,-460.0,0.00049315,120]
[377157064,1754262641277,-889.75,0.00049315,120]
[377157065,1754262641286,-571.13,0.00049315,120]
[377157066,1754262641295,-185.05566917,0.00049315,120]
[377157068,1754262641305,-460.0,0.00049315,120]
[377157070,1754262641314,-1038.86,0.00049315,120]
[377157072,1754262641323,-736.56,0.00049315,120]
[377157073,1754262641333,-460.0,0.00049315,120]
[377157074,1754262641342,-460.0,0.00049315,120]
[377157075,1754262641352,-460.0,0.00049315,120]
[377157076,1754262641361,-460.0,0.00049315,120]
[377157077,1754262641371,-227.63546389,0.00049315,120]
[377157078,1754262641382,-2847.99,0.00049315,120]
[377157079,1754262641392,-460.0,0.00049315,120]
[377157080,1754262641402,-460.0,0.00049315,120]
[377157081,1754262641411,-865.96,0.00049315,120]
[377157082,1754262641421,-843.98,0.00049315,120]
[377157083,1754262641430,-460.0,0.00049315,120]
[377157084,1754262641440,-941.54,0.00049315,120]
[377157085,1754262641449,-460.0,0.00049315,5]
[377157086,1754262641459,-153.40774639,0.00049315,120]
[377157087,1754262641468,-460.0,0.00049315,120]
[377157088,1754262641477,-7701.02,0.00049315,120]
[377157089,1754262641486,-1207.31,0.00049315,120]
[377157090,1754262641496,-460.0,0.00049315,120]
[377157091,1754262641505,-653.56,0.00049315,120]
[377157092,1754262641515,-460.0,0.00049315,120]
[377157093,1754262641525,-460.0,0.00049315,120]
[377157094,1754262641534,-460.0,0.00049315,120]
[377157095,1754262641544,-460.0,0.00049315,120]
[377157096,1754262641554,-460.0,0.00049315,120]
[377157097,1754262641563,-460.0,0.00049315,120]
[377157098,1754262641573,-460.0,0.00049315,120]
[377157099,1754262641586,-460.0,0.00049315,120]
[377157100,1754262641595,-5734.52,0.00049315,120]
[377157101,1754262641605,-460.0,0.00049315,120]
[377157102,1754262641614,-460.0,0.00049315,120]
[377157103,1754262641624,-460.23090965,0.00049315,120]
[377157104,1754262641633,-378.85004425,0.00049315,120]
[377157105,1754262641643,-460.0,0.00049315,120]
[377157106,1754262641653,-460.64736986,0.00049315,120]
[377157107,1754262641662,-460.0,0.00049315,120]
[377157108,1754262641672,-857.58,0.00049315,120]
[377157109,1754262641682,-460.5574981,0.00049315,120]
[377157110,1754262641691,-1789.99,0.00049315,120]
[377157111,1754262641700,-460.0,0.00049315,120]
[377157112,1754262641710,-460.0,0.00049315,120]
[377157113,1754262641720,-991.03,0.00049315,120]
[377157114,1754262641729,-460.0,0.00049315,120]
[377157115,1754262641739,-460.0,0.00049315,120]
[377157116,1754262641748,-460.0,0.00049315,120]
[377157117,1754262641757,-460.0,0.00049315,120]
[377157118,1754262641767,-497.63790575,0.00049315,120]
[377157119,1754262641847,-683.54,0.00049315,120]
[377157120,1754262641856,-460.0,0.00049315,120]
[377157121,1754262641866,-460.0,0.00049315,120]
[377157122,1754262641876,-460.0,0.00049315,120]
[377157123,1754262641885,-460.0,0.00049315,120]
[377157124,1754262641895,-523.69,0.00049315,120]
[377157125,1754262641905,-460.0,0.00049315,120]
[377157126,1754262641914,-460.0,0.00049315,120]
[377157127,1754262641924,-460.0,0.00049315,120]
[377157128,1754262641933,-1494.07,0.00049315,120]
[377157129,1754262641943,-404.88282795,0.00049315,120]
[377157130,1754262641952,-599.91276582,0.00049315,120]
[377157131,1754262641963,-628.71,0.00049315,120]
[377157132,1754262641972,-460.0,0.00049315,120]
[377157133,1754262641983,-460.0,0.00049315,120]
[377157134,1754262641993,-1809.9,0.00049315,120]
[377157135,1754262642003,-886.71,0.00049315,60]
[377157136,1754262642013,-460.0,0.00049315,120]
[377157137,1754262642023,-460.0,0.00049315,120]
[377157138,1754262642032,-460.0,0.00049315,120]
[377157139,1754262642042,-460.0,0.00049315,120]
[377157140,1754262642052,-460.0,0.00049315,120]
[377157141,1754262642061,-460.65260022,0.00049315,120]
[377157142,1754262642071,-766.43,0.00049315,120]
[377157143,1754262642081,-460.0,0.00049315,120]
[377157144,1754262642093,-460.0,0.00049315,120]
[377157145,1754262642103,-1133.6,0.00049315,120]
[377157146,1754262642113,-460.0,0.00049315,120]
[377157147,1754262642123,-460.0,0.00049315,120]
[377157148,1754262642132,-1078.26,0.00049315,120]
[377157149,1754262642142,-760.62,0.00049315,120]
[377157150,1754262642152,-460.0,0.00049315,120]
[377157151,1754262642162,-460.0,0.00049315,120]
[377157152,1754262642172,-460.0,0.00049315,120]
[377157153,1754262642181,-460.0,0.00049315,120]
[377157154,1754262642191,-1210.46,0.00049315,120]
[377157155,1754262642201,-460.0,0.00049315,120]
[377157156,1754262642211,-460.0,0.00049315,120]
[377157157,1754262642220,-460.0,0.00049315,120]
[377157158,1754262642230,-460.0,0.00049315,120]
[377157159,1754262642239,-1116.4,0.00049315,120]
[377157160,1754262642248,-1191.9,0.00049315,120]
[377157161,1754262642258,-460.0,0.00049315,120]
[377157162,1754262642267,-460.0,0.00049315,120]
[377157163,1754262642276,-1734.69,0.00049315,120]
[377157164,1754262642286,-460.0,0.00049315,120]
[377157165,1754262642295,-460.0,0.00049315,120]
[377157166,1754262642304,-460.0,0.00049315,120]
[377157167,1754262642314,-387.43101359,0.00049315,120]
[377157168,1754262642324,-460.0,0.00049315,120]
[377157169,1754262642333,-16023.88,0.00049315,120]
[377157170,1754262642342,-596.33,0.00049315,120]
[377157171,1754262642352,-460.0,0.00049315,120]
[377157172,1754262642361,-467.36792955,0.00049315,120]
[377157173,1754262642371,-460.0,0.00049315,120]
[377157174,1754262642380,-460.0,0.00049315,120]
[377157175,1754262642390,-460.0,0.00049315,120]
[377157176,1754262642399,-1152.48,0.00049315,21]
[377157177,1754262642409,-460.0,0.00049315,120]
[377157178,1754262642419,-460.0,0.00049315,120]
[377157179,1754262642429,-460.0,0.00049315,120]
[377157180,1754262642439,-1358.52,0.00049315,120]
[377157181,1754262642448,-460.0,0.00049315,120]
[377157182,1754262642458,-15861.99,0.00049315,120]
[377157183,1754262642469,-460.42004013,0.00049315,120]
[377157184,1754262642479,-6227.49,0.00049315,120]
[377157185,1754262642489,-555.24,0.00049315,120]
[377157186,1754262642499,-460.0,0.00049315,120]
[377157187,1754262642509,-460.0,0.00049315,120]
[377157189,1754262642520,-1660.66,0.00049315,120]
[377157191,1754262642530,-473.87573508,0.00049315,2]
[377157192,1754262642539,-2212.7,0.00049315,120]
[377157193,1754262642549,-170.0573088,0.00049315,120]
[377157194,1754262642561,-600.21749227,0.00049315,120]
[377157195,1754262642571,-151.0,0.00049315,120]
[377157197,1754262642582,-151.0,0.00049315,120]
[377157199,1754262642591,-151.0,0.00049315,120]
[377157201,1754262642600,-151.0,0.00049315,120]
[377157203,1754262642610,-528.40771759,0.00049315,120]
[377157205,1754262642620,-460.0,0.00049315,120]
[377157207,1754262642629,-460.0,0.00049315,120]
[377157209,1754262642639,-460.0,0.00049315,120]
[377157211,1754262642649,-460.0,0.00049315,120]
[377157213,1754262642659,-460.0,0.00049315,120]
[377157215,1754262642669,-1016.02,0.00049315,120]
[377157217,1754262642679,-607.55705591,0.00049315,120]
[377157219,1754262642688,-460.0,0.00049315,120]
[377157221,1754262642698,-768.82,0.00049315,120]
[377157223,1754262642707,-460.0,0.00049315,120]
[377157224,1754262642717,-460.0,0.00049315,120]
[377157226,1754262642727,-5521.26,0.00049315,120]
[377157228,1754262642737,-460.0,0.00049315,120]
[377157230,1754262642749,-460.0,0.00049315,120]
[377157231,1754262642759,-818.93,0.00049315,120]
[377157232,1754262642769,-1203.35,0.00049315,120]
[377157233,1754262642778,-460.0,0.00049315,120]
[377157234,1754262642787,-460.0,0.00049315,120]
[377157235,1754262642799,-4541.26,0.00049315,120]
[377157236,1754262642809,-460.0,0.00049315,120]
[377157237,1754262642820,-460.0,0.00049315,120]
[377157238,1754262642830,-460.0,0.00049315,120]
[377157239,1754262642840,-460.0,0.00049315,120]
[377157240,1754262642850,-460.0,0.00049315,120]
[377157241,1754262642861,-460.0,0.00049315,120]
[377157242,1754262642871,-460.0,0.00049315,120]
[377157243,1754262642882,-460.0,0.00049315,120]
[377157244,1754262642891,-460.0,0.00049315,120]
[377157245,1754262642901,-578.24,0.00049315,120]
[377157246,1754262642979,-460.0,0.00049315,120]
[377157247,1754262642989,-606.89,0.00049315,120]
[377157248,1754262642999,-506.94498593,0.00049315,120]
[377157249,1754262643008,-460.0,0.00049315,120]
[377157250,1754262643018,-460.0,0.00049315,120]
[377157251,1754262643027,-460.0,0.00049315,120]
[377157252,1754262643037,-460.0,0.00049315,120]
[377157253,1754262643047,-460.0,0.00049315,120]
[377157254,1754262643058,-509.89,0.00049315,120]
[377157255,1754262643068,-719.21,0.00049315,120]
[377157256,1754262643079,-12428.72,0.00049315,120]
[377157257,1754262643089,-460.0,0.00049315,120]
[377157258,1754262643099,-1118.25,0.00049315,120]
[377157259,1754262643110,-460.0,0.00049315,120]
[377157260,1754262643120,-460.0,0.00049315,120]
[377157261,1754262643131,-460.0,0.00049315,120]
[377157262,1754262643141,-460.0,0.00049315,120]
[377157263,1754262643151,-460.0,0.00049315,120]
[377157264,1754262643161,-460.0,0.00049315,120]
[377157265,1754262643170,-1713.09,0.00049315,120]
[377157266,1754262643180,-500.0,0.00049315,2]
[377157267,1754262643190,-500.0,0.00049315,2]
[377157268,1754262643199,-500.0,0.00049315,2]
[377157269,1754262643209,-500.0,0.00049315,2]
[377157270,1754262643219,-500.0,0.00049315,2]
[377157271,1754262643229,-628.496858,0.00049315,2]
[377157272,1754262643239,-460.0,0.00049315,120]
[377157273,1754262643249,-460.0,0.00049315,120]
[377157274,1754262643258,-460.0,0.00049315,120]
[377157275,1754262643268,-460.0,0.00049315,120]
[377157276,1754262643278,-460.0,0.00049315,120]
[377157277,1754262643292,-460.0,0.00049315,120]
[377157278,1754262643315,-460.0,0.00049315,120]
[377157279,1754262643332,-460.0,0.00049315,120]
[377157280,1754262643342,-460.0,0.00049315,120]
[377157281,1754262643352,-1394.56,0.00049315,120]
[377157282,1754262643362,-460.0,0.00049315,120]
[377157283,1754262643371,-6980.28,0.00049315,120]
[377157284,1754262643381,-1713.18,0.00049315,120]
[377157285,1754262643391,-604.36,0.00049315,120]
[377157286,1754262643401,-460.0,0.00049315,120]
[377157287,1754262643410,-460.0,0.00049315,120]
[377157288,1754262643420,-614.31,0.00049315,120]
[377157289,1754262643430,-1117.36,0.00049315,120]
[377157290,1754262643439,-460.0,0.00049315,120]
[377157291,1754262643449,-460.0,0.00049315,120]
[377157292,1754262643459,-630.13,0.00049315,120]
[377157293,1754262643468,-460.0,0.00049315,120]
[377157294,1754262643478,-313.75757128,0.00049352,2]
[377157295,1754262643490,-500.0,0.00049373,10]
[377157296,1754262643499,-500.0,0.00049373,10]
[377157297,1754262643509,-500.0,0.00049373,10]
[377157298,1754262643518,-500.0,0.00049373,7]
[377157299,1754262643529,-337.15305541,0.00049373,10]
[377157300,1754262643539,-500.0,0.00049373,10]
[377157301,1754262643549,-500.0,0.00049373,10]
[377157302,1754262643560,-500.0,0.00049373,10]
[377157303,1754262643570,-200.0,0.00049373,10]
[377157304,1754262643583,-313.75757128,0.00049421,2]
[377157305,1754262643593,-313.75757128,0.00049489,2]
[377157306,1754262643602,-373.91148473,0.00049555,60]
[377157307,1754262643612,-2989.21383384,0.00049569,4]
[377157308,1754262643622,-502.05085636,0.00049573,10]
[377157309,1754262643632,-500.0,0.00049573,10]
[377157310,1754262643641,-500.0,0.00049573,2]
[377157311,1754262643652,-500.0,0.00049573,10]
[377157312,1754262643662,-500.0,0.00049573,10]
[377157313,1754262643672,-500.0,0.00049573,10]
[377157314,1754262643681,-500.0,0.00049573,10]
[377157315,1754262643691,-500.0,0.00049573,10]
[377157316,1754262643700,-280.47706655,0.00049573,10]
[377157317,1754262643710,-500.0,0.00049573,10]
[377157318,1754262643720,-500.0,0.00049573,10]
[377157319,1754262643730,-500.0,0.00049573,10]
[377157320,1754262643739,-500.0,0.00049573,2]
[377157321,1754262643749,-505.39753194,0.00049573,10]
[377157322,1754262643758,-637.6685176,0.00049573,10]
[377157323,1754262643768,-500.0,0.00049573,10]
[377157324,1754262643778,-641.7037864,0.00049573,10]
[377157325,1754262643787,-590.99116393,0.00049573,10]
[377157326,1754262643796,-8967.64150152,0.00049579,4]
[377157327,1754262643806,-460.0,0.00049589,120]
[377157328,1754262643816,-460.0,0.00049589,120]
[377157329,1754262643826,-460.0,0.00049589,120]
[377157330,1754262643836,-460.0,0.00049589,120]
[377157331,1754262643846,-460.0,0.00049589,120]
[377157332,1754262643855,-460.0,0.00049589,120]
[377157333,1754262643864,-460.0,0.00049589,120]
[377157334,1754262643874,-460.0,0.00049589,120]
[377157335,1754262643884,-574.89,0.00049589,30]
[377157336,1754262643893,-460.0,0.00049589,120]
[377157337,1754262643904,-481.41,0.00049589,120]
[377157338,1754262643915,-460.0,0.00049589,120]
[377157339,1754262643925,-460.0,0.00049589,120]
[377157340,1754262643935,-460.0,0.00049589,120]
[377157341,1754262643945,-460.0,0.00049589,120]
[377157343,1754262643955,-460.0,0.00049589,120]
[377157345,1754262643964,-467.10016331,0.00049589,120]
[377157346,1754262643974,-460.0,0.00049589,120]
[377157348,1754262643983,-460.0,0.00049589,120]
[377157349,1754262644059,-460.0,0.00049589,120]
[377157350,1754262644075,-460.0,0.00049589,120]
[377157351,1754262644084,-460.0,0.00049589,120]
[377157352,1754262644094,-460.0,0.00049589,120]
[377157354,1754262644104,-1013.03,0.00049589,120]
[377157355,1754262644113,-460.0,0.00049589,120]
[377157356,1754262644124,-465.61161905,0.00049589,120]
[377157357,1754262644134,-460.0,0.00049589,120]
[377157358,1754262644143,-463.87699747,0.00049589,120]
[377157360,1754262644153,-460.000001,0.00049589,120]
[377157362,1754262644162,-460.0,0.00049589,120]
[377157363,1754262644172,-460.0,0.00049589,120]
[377157364,1754262644182,-460.0,0.00049589,120]
[377157365,1754262644191,-460.0,0.00049589,120]
[377157366,1754262644200,-460.0,0.00049589,120]
[377157367,1754262644210,-585.48404139,0.00049589,120]
[377157368,1754262644219,-460.0,0.00049589,120]
[377157369,1754262644228,-460.0,0.00049589,120]
[377157370,1754262644237,-460.0,0.00049589,120]
[377157371,1754262644247,-464.48015642,0.00049589,120]
[377157372,1754262644256,-460.0,0.00049589,120]
[377157373,1754262644265,-460.0,0.00049589,120]
[377157374,1754262644275,-500.0,0.00049589,2]
[377157375,1754262644285,-670.49,0.00049589,120]
[377157376,1754262644295,-460.0,0.00049589,120]
[377157377,1754262644304,-460.0,0.00049589,120]
[377157378,1754262644318,-826.62,0.00049589,120]
[377157379,1754262644338,-460.0,0.00049589,120]
[377157380,1754262644361,-460.0,0.00049589,120]
[377157381,1754262644383,-460.0,0.00049589,120]
[377157382,1754262644405,-460.0,0.00049589,120]
[377157383,1754262644427,-460.0,0.00049589,120]
[377157384,1754262644450,-460.0,0.00049589,120]
[377157385,1754262644472,-460.0,0.00049589,120]
[377157386,1754262644494,-501.54383892,0.00049589,120]
[377157388,1754262644518,-460.0,0.00049589,120]
[377157389,1754262644542,-460.0,0.00049589,120]
[377157390,1754262644565,-460.0,0.00049589,120]
[377157392,1754262644586,-460.0,0.00049589,120]
[377157394,1754262644610,-460.0,0.00049589,120]
[377157397,1754262644633,-458.18300989,0.00049589,120]
[377157399,1754262644646,-460.0,0.00049589,120]
[377157403,1754262644655,-460.86815289,0.00049589,120]
[377157405,1754262644665,-460.0,0.00049589,120]
[377157408,1754262644675,-498.36,0.00049589,120]
[377157409,1754262644684,-460.0,0.00049589,120]
[377157411,1754262644694,-460.0,0.00049589,120]
[377157414,1754262644704,-460.61577241,0.00049589,120]
[377157415,1754262644714,-283.32548639,0.00049589,120]
[377157416,1754262644724,-460.0,0.00049589,120]
[377157417,1754262644733,-532.5190395,0.00049589,120]
[377157418,1754262644742,-460.0,0.00049589,120]
[377157419,1754262644752,-460.0,0.00049589,120]
[377157420,1754262644761,-460.0,0.00049589,120]
[377157421,1754262644771,-460.0,0.00049589,120]
[377157422,1754262644781,-460.0,0.00049589,120]
[377157424,1754262644791,-460.0,0.00049589,120]
[377157426,1754262644800,-637.52,0.00049589,120]
[377157428,1754262644810,-460.0,0.00049589,120]
[377157429,1754262644820,-460.0,0.00049589,120]
[377157430,1754262644832,-393.14184363,0.00049589,120]
[377157431,1754262644842,-460.0,0.00049589,120]
[377157432,1754262644851,-683.19,0.00049589,120]
[377157433,1754262644862,-460.0,0.00049589,120]
[377157434,1754262644872,-365.69321032,0.00049589,120]
[377157435,1754262644882,-460.0,0.00049589,120]
[377157436,1754262644891,-460.0,0.00049589,120]
[377157437,1754262644901,-460.0,0.00049589,120]
[377157438,1754262644912,-460.0,0.00049589,120]
[377157439,1754262644923,-460.0,0.00049589,120]
[377157440,1754262644934,-489.18254697,0.00049589,120]
[377157441,1754262644945,-460.0,0.00049589,120]
[377157442,1754262644955,-460.0,0.00049589,120]
[377157443,1754262644965,-573.48,0.00049589,120]
[377157444,1754262644975,-464.33235739,0.00049589,120]
[377157446,1754262644985,-460.0,0.00049589,120]
[377157448,1754262644994,-460.0,0.00049589,120]
[377157450,1754262645004,-689.19,0.00049589,120]
[377157451,1754262645014,-460.0,0.00049589,120]
[377157452,1754262645023,-460.0,0.00049589,20]
[377157453,1754262645033,-460.0,0.00049589,120]
[377157454,1754262645042,-460.0,0.00049589,120]
[377157455,1754262645052,-460.0,0.00049589,120]
[377157456,1754262645061,-460.0,0.00049589,120]
[377157457,1754262645071,-460.0,0.00049589,120]
[377157458,1754262645081,-460.0,0.00049589,120]
[377157459,1754262645092,-460.0,0.00049589,120]
[377157460,1754262645102,-460.0,0.00049589,120]
[377157461,1754262645112,-528.82,0.00049589,120]
[377157462,1754262645122,-460.0,0.00049589,120]
[377157463,1754262645132,-460.0,0.00049589,120]
[377157464,1754262645141,-460.0,0.00049589,120]
[377157465,1754262645213,-460.0,0.00049589,120]
[377157466,1754262645223,-460.0,0.00049589,120]
[377157467,1754262645232,-460.0,0.00049589,120]
[377157468,1754262645242,-460.0,0.00049589,120]
[377157469,1754262645251,-460.0,0.00049589,120]
[377157470,1754262645260,-460.0,0.00049589,120]
[377157471,1754262645271,-460.0,0.00049589,120]
[377157472,1754262645280,-460.0,0.00049589,120]
[377157473,1754262645290,-722.18,0.00049589,120]
[377157474,1754262645299,-151.0,0.00049589,120]
[377157475,1754262645309,-200.0,0.00049589,120]
[377157476,1754262645319,-151.0,0.00049589,120]
[377157477,1754262645329,-460.0,0.00049589,120]
[377157478,1754262645341,-462.42653264,0.00049589,120]
[377157479,1754262645350,-460.0,0.00049589,120]
[377157480,1754262645361,-460.0,0.00049589,120]
[377157481,1754262645370,-460.0,0.00049589,120]
[377157482,1754262645379,-460.0,0.00049589,120]
[377157483,1754262645389,-460.0,0.00049589,120]
[377157484,1754262645398,-460.0,0.00049589,120]
[377157485,1754262645408,-460.0,0.00049589,60]
[377157486,1754262645419,-460.0,0.00049589,120]
[377157487,1754262645430,-460.0,0.00049589,120]
[377157488,1754262645440,-460.0,0.00049589,7]
[377157489,1754262645450,-460.0,0.00049589,120]
[377157490,1754262645460,-460.0,0.00049589,120]
[377157491,1754262645470,-463.14,0.00049589,120]
[377157492,1754262645480,-300.0,0.00049589,4]
[377157493,1754262645490,-460.0,0.00049589,120]
[377157494,1754262645500,-370.32153492,0.00049589,120]
[377157495,1754262645511,-460.0,0.00049589,120]
[377157496,1754262645522,-460.0,0.00049589,120]
[377157497,1754262645532,-460.0,0.00049589,120]
[377157498,1754262645541,-460.0,0.00049589,120]
[377157499,1754262645551,-460.0,0.00049589,120]
[377157500,1754262645561,-460.0,0.00049589,120]
[377157501,1754262645571,-460.0,0.00049589,120]
[377157502,1754262645585,-460.0,0.00049589,120]
[377157503,1754262645595,-460.0,0.00049589,120]
[377157504,1754262645605,-460.0,0.00049589,120]
[377157505,1754262645615,-460.0,0.00049589,120]
[377157506,1754262645625,-460.0,0.00049589,120]
[377157507,1754262645641,-814.14,0.00049589,120]
[377157509,1754262645659,-460.0,0.00049589,120]
[377157510,1754262645677,-460.0,0.00049589,2]
[377157511,1754262645697,-460.0,0.00049589,120]
[377157512,1754262645717,-460.0,0.00049589,120]
[377157513,1754262645735,-460.0,0.00049589,120]
[377157514,1754262645754,-460.0,0.00049589,120]
[377157515,1754262645771,-460.0,0.00049589,120]
[377157516,1754262645788,-460.0,0.00049589,120]
[377157517,1754262645806,-523.18,0.00049589,120]
[377157518,1754262645829,-460.0,0.00049589,120]
[377157519,1754262645843,-464.26665719,0.00049589,120]
[377157520,1754262645862,-460.0,0.00049589,120]
[377157521,1754262645878,-460.0,0.00049589,120]
[377157522,1754262645894,-460.0,0.00049589,120]
[377157523,1754262645908,-460.0,0.00049589,120]
[377157526,1754262645923,-460.0,0.00049589,120]
[377157528,1754262645938,-384.46901213,0.00049589,120]
[377157529,1754262645953,-460.0,0.00049589,120]
[377157530,1754262645968,-460.0,0.00049589,120]
[377157531,1754262645984,-460.0,0.00049589,120]
[377157532,1754262645999,-460.0,0.00049589,120]
[377157533,1754262646016,-460.0,0.00049589,7]
[377157534,1754262646031,-460.0,0.00049589,120]
[377157535,1754262646046,-460.0,0.00049589,120]
[377157538,1754262646062,-460.0,0.00049589,120]
[377157539,1754262646078,-460.0,0.00049589,120]
[377157540,1754262646094,-460.0,0.00049589,120]
[377157542,1754262646109,-460.0,0.00049589,120]
[377157543,1754262646126,-460.0,0.00049589,120]
[377157544,1754262646143,-481.04634767,0.00049589,120]
[377157545,1754262646158,-460.0,0.00049589,120]
[377157546,1754262646174,-1010.7,0.00049589,120]
[377157547,1754262646191,-460.0,0.00049589,120]
[377157548,1754262646207,-460.0,0.00049589,120]
[377157549,1754262646223,-623.39,0.00049589,120]
[377157550,1754262646239,-460.0,0.00049589,3]
[377157551,1754262646256,-460.0,0.00049589,120]
[377157552,1754262646272,-1000.0,0.00049589,120]
[377157553,1754262646287,-460.0,0.00049589,120]
[377157554,1754262646304,-460.0,0.00049589,120]